{"text_format":"1","workbook":"xlsx","n_sheets":2,"sheets":["EPS au collège","Feuil1"],"not_rendered":{"charts":0,"images":0,"macros":1,"external_links":0,"defined_names":17,"comments":1,"pivot_tables":0},"unopened":[],"bounds":{"document_bytes":16777216,"sheet_cells":100000,"rows_first":2000,"rows_last":500,"rows_between":2000,"halvings":0,"cell_chars":16384,"cell_head_chars":4096},"cells_cut":0,"cells_raw":0,"read":"whole","date_system":"1900"}

{"sheet":"EPS au collège","index":0,"n_rows":29,"n_cols":22,"rows_kept":29,"cut":false,"hidden":false,"merged":[[0,1,0,2],[1,12,1,16]]}
["NOM DU COLLÈGE : ",null,null,"Signature\nLe/La Principal(e) :",null,"Date",null,null,null,null,null,null,null,null,null,null,null,null,null,null,null,"Partie réservée à l'administration"]
["Type de pratique sportive","Type d'équipement sportif","Sous-type d'équipement sportif","Nom de l'équipement sportif","Rue","Code postal","Ville","Propriétaire de l'équipement","Gestionnaire de l'équipement","Type de pratique sportive","Période d'occupation :\nA l'année ou période 1,2,3,4…","Nombre de semaines concernées","Jours d'occupation",null,null,null,null,null,"Nombre de jours d'occupation dans la semaine","Créneau horaire\nheure de début","Créneau horaire\nheure de fin"]
[null,null,null,null,null,null,null,null,null,null,null,null,"du",null,{"$f":"VLOOKUP(N3,Feuil1!$D$27:$E$31,2,FALSE)","v":{"$error":"#N/A"}},"au",null,{"$f":"VLOOKUP(Q3,Feuil1!$D$27:$E$31,2,FALSE)","v":{"$error":"#N/A"}},{"$f":"R3-O3+1","v":{"$error":"#N/A"}},null,null,{"$f":"(U3-T3)*S3*L3","v":{"$error":"#N/A"}}]
[null,null,null,null,null,null,null,null,null,null,null,null,"du",null,{"$f":"VLOOKUP(N4,Feuil1!$D$27:$E$31,2,FALSE)","v":{"$error":"#N/A"}},"au",null,{"$f":"VLOOKUP(Q4,Feuil1!$D$27:$E$31,2,FALSE)","v":{"$error":"#N/A"}},{"$error":"#N/A"},null,null,{"$error":"#N/A"}]
[null,null,null,null,null,null,null,null,null,null,null,null,"du",null,{"$f":"VLOOKUP(N5,Feuil1!$D$27:$E$31,2,FALSE)","v":{"$error":"#N/A"}},"au",null,{"$f":"VLOOKUP(Q5,Feuil1!$D$27:$E$31,2,FALSE)","v":{"$error":"#N/A"}},{"$error":"#N/A"},null,null,{"$error":"#N/A"}]
[null,null,null,null,null,null,null,null,null,null,null,null,"du",null,{"$f":"VLOOKUP(N6,Feuil1!$D$27:$E$31,2,FALSE)","v":{"$error":"#N/A"}},"au",null,{"$f":"VLOOKUP(Q6,Feuil1!$D$27:$E$31,2,FALSE)","v":{"$error":"#N/A"}},{"$error":"#N/A"},null,null,{"$error":"#N/A"}]
[null,null,null,null,null,null,null,null,null,null,null,null,"du",null,{"$f":"VLOOKUP(N7,Feuil1!$D$27:$E$31,2,FALSE)","v":{"$error":"#N/A"}},"au",null,{"$f":"VLOOKUP(Q7,Feuil1!$D$27:$E$31,2,FALSE)","v":{"$error":"#N/A"}},{"$error":"#N/A"},null,null,{"$error":"#N/A"}]
[null,null,null,null,null,null,null,null,null,null,null,null,"du",null,{"$f":"VLOOKUP(N8,Feuil1!$D$27:$E$31,2,FALSE)","v":{"$error":"#N/A"}},"au",null,{"$f":"VLOOKUP(Q8,Feuil1!$D$27:$E$31,2,FALSE)","v":{"$error":"#N/A"}},{"$error":"#N/A"},null,null,{"$error":"#N/A"}]
[null,null,null,null,null,null,null,null,null,null,null,null,"du",null,{"$f":"VLOOKUP(N9,Feuil1!$D$27:$E$31,2,FALSE)","v":{"$error":"#N/A"}},"au",null,{"$f":"VLOOKUP(Q9,Feuil1!$D$27:$E$31,2,FALSE)","v":{"$error":"#N/A"}},{"$f":"R9-O9+1","v":{"$error":"#N/A"}},null,null,{"$f":"(U9-T9)*S9*L9","v":{"$error":"#N/A"}}]
[null,null,null,null,null,null,null,null,null,null,null,null,"du",null,{"$f":"VLOOKUP(N10,Feuil1!$D$27:$E$31,2,FALSE)","v":{"$error":"#N/A"}},"au",null,{"$f":"VLOOKUP(Q10,Feuil1!$D$27:$E$31,2,FALSE)","v":{"$error":"#N/A"}},{"$error":"#N/A"},null,null,{"$error":"#N/A"}]
[null,null,null,null,null,null,null,null,null,null,null,null,"du",null,{"$f":"VLOOKUP(N11,Feuil1!$D$27:$E$31,2,FALSE)","v":{"$error":"#N/A"}},"au",null,{"$f":"VLOOKUP(Q11,Feuil1!$D$27:$E$31,2,FALSE)","v":{"$error":"#N/A"}},{"$error":"#N/A"},null,null,{"$error":"#N/A"}]
[null,null,null,null,null,null,null,null,null,null,null,null,"du",null,{"$f":"VLOOKUP(N12,Feuil1!$D$27:$E$31,2,FALSE)","v":{"$error":"#N/A"}},"au",null,{"$f":"VLOOKUP(Q12,Feuil1!$D$27:$E$31,2,FALSE)","v":{"$error":"#N/A"}},{"$error":"#N/A"},null,null,{"$error":"#N/A"}]
[null,null,null,null,null,null,null,null,null,null,null,null,"du",null,{"$f":"VLOOKUP(N13,Feuil1!$D$27:$E$31,2,FALSE)","v":{"$error":"#N/A"}},"au",null,{"$f":"VLOOKUP(Q13,Feuil1!$D$27:$E$31,2,FALSE)","v":{"$error":"#N/A"}},{"$error":"#N/A"},null,null,{"$error":"#N/A"}]
[null,null,null,null,null,null,null,null,null,null,null,null,"du",null,{"$f":"VLOOKUP(N14,Feuil1!$D$27:$E$31,2,FALSE)","v":{"$error":"#N/A"}},"au",null,{"$f":"VLOOKUP(Q14,Feuil1!$D$27:$E$31,2,FALSE)","v":{"$error":"#N/A"}},{"$error":"#N/A"},null,null,{"$error":"#N/A"}]
[null,null,null,null,null,null,null,null,null,null,null,null,"du",null,{"$f":"VLOOKUP(N15,Feuil1!$D$27:$E$31,2,FALSE)","v":{"$error":"#N/A"}},"au",null,{"$f":"VLOOKUP(Q15,Feuil1!$D$27:$E$31,2,FALSE)","v":{"$error":"#N/A"}},{"$error":"#N/A"},null,null,{"$error":"#N/A"}]
[null,null,null,null,null,null,null,null,null,null,null,null,"du",null,{"$f":"VLOOKUP(N16,Feuil1!$D$27:$E$31,2,FALSE)","v":{"$error":"#N/A"}},"au",null,{"$f":"VLOOKUP(Q16,Feuil1!$D$27:$E$31,2,FALSE)","v":{"$error":"#N/A"}},{"$error":"#N/A"},null,null,{"$error":"#N/A"}]
[null,null,null,null,null,null,null,null,null,null,null,null,"du",null,{"$f":"VLOOKUP(N17,Feuil1!$D$27:$E$31,2,FALSE)","v":{"$error":"#N/A"}},"au",null,{"$f":"VLOOKUP(Q17,Feuil1!$D$27:$E$31,2,FALSE)","v":{"$error":"#N/A"}},{"$error":"#N/A"},null,null,{"$error":"#N/A"}]
[null,null,null,null,null,null,null,null,null,null,null,null,"du",null,{"$f":"VLOOKUP(N18,Feuil1!$D$27:$E$31,2,FALSE)","v":{"$error":"#N/A"}},"au",null,{"$f":"VLOOKUP(Q18,Feuil1!$D$27:$E$31,2,FALSE)","v":{"$error":"#N/A"}},{"$error":"#N/A"},null,null,{"$error":"#N/A"}]
[null,null,null,null,null,null,null,null,null,null,null,null,"du",null,{"$f":"VLOOKUP(N19,Feuil1!$D$27:$E$31,2,FALSE)","v":{"$error":"#N/A"}},"au",null,{"$f":"VLOOKUP(Q19,Feuil1!$D$27:$E$31,2,FALSE)","v":{"$error":"#N/A"}},{"$error":"#N/A"},null,null,{"$error":"#N/A"}]
[null,null,null,null,null,null,null,null,null,null,null,null,"du",null,{"$f":"VLOOKUP(N20,Feuil1!$D$27:$E$31,2,FALSE)","v":{"$error":"#N/A"}},"au",null,{"$f":"VLOOKUP(Q20,Feuil1!$D$27:$E$31,2,FALSE)","v":{"$error":"#N/A"}},{"$error":"#N/A"},null,null,{"$error":"#N/A"}]
[null,null,null,null,null,null,null,null,null,null,null,null,"du",null,{"$f":"VLOOKUP(N21,Feuil1!$D$27:$E$31,2,FALSE)","v":{"$error":"#N/A"}},"au",null,{"$f":"VLOOKUP(Q21,Feuil1!$D$27:$E$31,2,FALSE)","v":{"$error":"#N/A"}},{"$f":"R21-O21+1","v":{"$error":"#N/A"}},null,null,{"$f":"(U21-T21)*S21*L21","v":{"$error":"#N/A"}}]
[null,null,null,null,null,null,null,null,null,null,null,null,"du",null,{"$f":"VLOOKUP(N22,Feuil1!$D$27:$E$31,2,FALSE)","v":{"$error":"#N/A"}},"au",null,{"$f":"VLOOKUP(Q22,Feuil1!$D$27:$E$31,2,FALSE)","v":{"$error":"#N/A"}},{"$error":"#N/A"},null,null,{"$error":"#N/A"}]
[null,null,null,null,null,null,null,null,null,null,null,null,"du",null,{"$f":"VLOOKUP(N23,Feuil1!$D$27:$E$31,2,FALSE)","v":{"$error":"#N/A"}},"au",null,{"$f":"VLOOKUP(Q23,Feuil1!$D$27:$E$31,2,FALSE)","v":{"$error":"#N/A"}},{"$error":"#N/A"},null,null,{"$error":"#N/A"}]
[null,null,null,null,null,null,null,null,null,null,null,null,"du",null,{"$f":"VLOOKUP(N24,Feuil1!$D$27:$E$31,2,FALSE)","v":{"$error":"#N/A"}},"au",null,{"$f":"VLOOKUP(Q24,Feuil1!$D$27:$E$31,2,FALSE)","v":{"$error":"#N/A"}},{"$f":"R24-O24+1","v":{"$error":"#N/A"}},null,null,{"$f":"(U24-T24)*S24*L24","v":{"$error":"#N/A"}}]
[null,null,null,null,null,null,null,null,null,null,null,null,"du",null,{"$f":"VLOOKUP(N25,Feuil1!$D$27:$E$31,2,FALSE)","v":{"$error":"#N/A"}},"au",null,{"$f":"VLOOKUP(Q25,Feuil1!$D$27:$E$31,2,FALSE)","v":{"$error":"#N/A"}},{"$error":"#N/A"},null,null,{"$error":"#N/A"}]
[null,null,null,null,null,null,null,null,null,null,null,null,"du",null,{"$f":"VLOOKUP(N26,Feuil1!$D$27:$E$31,2,FALSE)","v":{"$error":"#N/A"}},"au",null,{"$f":"VLOOKUP(Q26,Feuil1!$D$27:$E$31,2,FALSE)","v":{"$error":"#N/A"}},{"$f":"R26-O26+1","v":{"$error":"#N/A"}},null,null,{"$f":"(U26-T26)*S26*L26","v":{"$error":"#N/A"}}]
[null,null,null,null,null,null,null,null,null,null,null,null,"du",null,{"$f":"VLOOKUP(N27,Feuil1!$D$27:$E$31,2,FALSE)","v":{"$error":"#N/A"}},"au",null,{"$f":"VLOOKUP(Q27,Feuil1!$D$27:$E$31,2,FALSE)","v":{"$error":"#N/A"}},{"$error":"#N/A"},null,null,{"$error":"#N/A"}]
[null,null,null,null,null,null,null,null,null,null,null,null,"du",null,{"$f":"VLOOKUP(N28,Feuil1!$D$27:$E$31,2,FALSE)","v":{"$error":"#N/A"}},"au",null,{"$f":"VLOOKUP(Q28,Feuil1!$D$27:$E$31,2,FALSE)","v":{"$error":"#N/A"}},{"$f":"R28-O28+1","v":{"$error":"#N/A"}},null,null,{"$f":"(U28-T28)*S28*L28","v":{"$error":"#N/A"}}]
[null,null,null,null,null,null,null,null,null,null,null,null,"du",null,{"$f":"VLOOKUP(N29,Feuil1!$D$27:$E$31,2,FALSE)","v":{"$error":"#N/A"}},"au",null,{"$f":"VLOOKUP(Q29,Feuil1!$D$27:$E$31,2,FALSE)","v":{"$error":"#N/A"}},{"$error":"#N/A"},null,null,{"$error":"#N/A"}]

{"sheet":"Feuil1","index":1,"n_rows":31,"n_cols":14,"rows_kept":31,"cut":false,"hidden":false,"merged":[]}
[]
[]
["Équipement_couvert","Équipement_de_plein_air",null,"Pratique_sportive","Jour_occupation",null,"Année","Période_1","Période_2","Période_3","Période_4","Période_5","Période_6","Horaire"]
["Dojo","Terrain de grands jeux",null,"EPS","LUNDI",null,30,4,4,4,4,4,4,"08:00:00"]
["Salle de tennis de table","Aire d'athlétisme",null,"UNSS","MARDI",null,31,5,5,5,5,5,5,"08:30:00"]
["Salle de gymnastique","Plateau EPS",null,"Section sportive scolaire","MERCREDI",null,32,6,6,6,6,6,6,"09:00:00"]
["Autre (Précisez)","Autre (Précisez)",null,null,"JEUDI",null,33,7,7,7,7,7,7,"09:30:00"]
[null,null,null,null,"VENDREDI",null,34,8,8,8,8,8,8,"10:00:00"]
[null,null,null,null,null,null,35,9,9,9,9,9,9,"10:30:00"]
[null,null,null,null,null,null,36,null,null,null,null,null,null,"11:00:00"]
[null,null,null,null,null,null,37,null,null,null,null,null,null,"11:30:00"]
[null,null,null,null,null,null,38,null,null,null,null,null,null,"12:00:00"]
[null,null,null,null,null,null,null,null,null,null,null,null,null,"12:30:00"]
[null,null,null,null,null,null,null,null,null,null,null,null,null,"13:00:00"]
[null,null,null,null,null,null,null,null,null,null,null,null,null,"13:30:00"]
[null,null,null,null,null,null,null,null,null,null,null,null,null,"14:00:00"]
[null,null,null,null,null,null,null,null,null,null,null,null,null,"14:30:00"]
[null,null,null,"LUNDI","LUNDI",1,null,null,null,null,null,null,null,"15:00:00"]
[null,null,null,"MARDI","MARDI",1,null,null,null,null,null,null,null,"15:30:00"]
[null,null,null,"MERCREDI","MERCREDI",1,null,null,null,null,null,null,null,"16:00:00"]
[null,null,null,"JEUDI","JEUDI",1,null,null,null,null,null,null,null,"16:30:00"]
[null,null,null,"VENDREDI","VENDREDI",1,null,null,null,null,null,null,null,"17:00:00"]
[null,null,null,"LUNDI","MARDI",2,null,null,null,null,null,null,null,"17:30:00"]
[null,null,null,"LUNDI","MERCREDI",3,null,null,null,null,null,null,null,"18:00:00"]
[null,null,null,null,null,null,null,null,null,null,null,null,null,"18:30:00"]
[null,null,null,null,null,null,null,null,null,null,null,null,null,"19:00:00"]
[null,null,null,"LUNDI",1,null,null,null,null,null,null,null,null,"19:30:00"]
[null,null,null,"MARDI",2]
[null,null,null,"MERCREDI",3]
[null,null,null,"JEUDI",4]
[null,null,null,"VENDREDI",5]